bitfinex/quotes_SOLUSD_20250929
["timestamp","ask_amount","ask_price","bid_price","bid_amount"]
[1759110233203,26.69,210.22,210.17,4.758053]
[1759110233406,0.69,210.21,210.17,5.428053]
[1759110233608,0.69,210.21,210.17,17.32318551]
[1759110236608,0.69,210.2,210.17,16.65318551]
[1759110236982,26.0,210.22,210.17,16.65318551]
[1759110237282,0.69,210.21,210.17,17.32318551]
[1759110237905,0.69,210.2,210.17,4.758053]
[1759110238583,26.69,210.22,210.17,4.758053]
[1759110238774,0.69,210.21,210.17,4.758053]
[1759110238978,0.69,210.21,210.11,16.65794107]
[1759110239197,0.69,210.21,210.12,0.67]
[1759110239578,26.0,210.22,210.12,0.67]
[1759110240187,26.69,210.21,210.13,16.65635557]
[1759110240408,0.69,210.2,210.14,0.67]
[1759110242118,36.5,210.24,210.14,0.67]
[1759110242119,2.21101095,210.26,210.15,16.65477039]
[1759110242417,2.21101095,210.26,210.16,0.67]
[1759110244510,2.21101095,210.26,210.17,16.65318551]
[1759110244704,2.21101095,210.26,210.18,0.67]
[1759110246608,0.69,210.26,210.19,16.65160092]
[1759110246808,0.69,210.25,210.2,0.67]
[1759110247510,0.69,210.25,210.21,0.67]
[1759110247910,0.69,210.25,210.16,30.24957192]
[1759110248101,0.69,210.25,210.19,0.67]
[1759110249814,0.69,210.25,210.2,4.75737392]
[1759110250110,0.69,210.25,210.2,5.42737392]
[1759110250407,27.52101095,210.27,210.2,4.75737392]
[1759110250408,0.69,210.24,210.2,4.75737392]
[1759110250617,0.69,210.23,210.17,0.67]
[1759110251490,41.11660496,210.27,210.17,0.67]
[1759110251491,27.52101095,210.27,210.18,16.65239318]
[1759110251691,0.69,210.25,210.19,0.67]
[1759110252013,0.69,210.26,210.2,4.75737392]
[1759110252416,0.69,210.26,210.2,5.43737392]
[1759110252996,0.69,210.25,210.2,4.75737392]
[1759110253198,68.75680936,210.27,210.18,11.89456656]
[1759110253395,0.69,210.24,210.18,12.57456656]
[1759110253617,0.69,210.23,210.18,12.57456656]
[1759110253914,0.69,210.22,210.18,11.89456656]
[1759110254217,2.21101095,210.25,210.18,11.89456656]
[1759110254426,2.21101095,210.25,210.19,0.68]
[1759110255223,2.21101095,210.25,210.2,4.75737392]
[1759110255394,2.21101095,210.25,210.21,0.68]
[1759110256314,1.52101095,210.25,210.21,0.68]
[1759110256488,1.52101095,210.25,210.22,4.75692132]
[1759110256693,2.21101095,210.25,210.22,4.75692132]
[1759110258716,27.52101095,210.27,210.23,0.68]
[1759110258895,28.21101095,210.27,210.23,0.68]
[1759110259818,27.52101095,210.27,210.22,4.75692132]
[1759110260114,0.69,210.26,210.22,4.75692132]
[1759110260502,0.69,210.25,210.21,4.75711562]
[1759110260704,0.67,210.24,210.19,4.75760026]
[1759110260922,0.67,210.23,210.19,5.41760026]
[1759110262519,0.67,210.26,210.2,0.66]
[1759110264018,0.67,210.26,210.21,4.75714761]
[1759110264220,0.67,210.25,210.21,5.41714761]
[1759110264817,1.52101095,210.26,210.22,0.66]
[1759110265015,2.19101095,210.26,210.22,0.66]
[1759110265207,1.52101095,210.26,210.21,4.75714761]
[1759110265406,1.52101095,210.26,210.21,5.41714761]
[1759110265609,2.19101095,210.26,210.21,5.41714761]
[1759110265834,2.19101095,210.26,210.21,4.75714761]
[1759110266019,2.19101095,210.26,210.22,0.66]
[1759110267302,2.19101095,210.26,210.22,5.41690096]
[1759110267504,1.52101095,210.26,210.23,0.66]
[1759110269222,0.67,210.25,210.16,16.65397791]
[1759110269426,6.94705876,210.26,210.18,0.66]
[1759110270507,6.94705876,210.26,210.19,4.75760026]
[1759110270708,6.94705876,210.26,210.2,0.66]
[1759110272321,7.8006745,210.26,210.2,0.66]
[1759110274035,7.8006745,210.26,210.2,5.41728166]
[1759110274218,0.67,210.25,210.2,5.41728166]
[1759110274416,0.67,210.24,210.2,5.41728166]
[1759110276126,0.67,210.24,210.18,11.89433279]
[1759110276330,7.8006745,210.26,210.21,0.66]
[1759110276531,0.67,210.25,210.21,0.66]
[1759110278327,0.67,210.25,210.21,5.41712326]
[1759110278530,7.13066513,210.26,210.21,5.41712326]
[1759110278828,0.67,210.24,210.21,5.41712326]
[1759110279228,0.67,210.25,210.21,5.41712326]
[1759110280211,0.67,210.24,210.19,0.66]
[1759110280428,0.67,210.24,210.2,0.66]
[1759110280630,7.13066513,210.26,210.18,11.89433279]
[1759110280816,7.80066513,210.26,210.19,0.66]
[1759110281736,39.59559401,210.22,210.14,0.66]
[1759110281909,2.37462669,210.2,210.11,11.8982691]
[1759110282236,2.37462669,210.17,210.12,0.66]
[1759110282415,3.04462669,210.17,210.12,0.66]
[1759110282619,3.04462669,210.17,210.13,0.66]
[1759110282810,3.04462669,210.17,210.13,5.41884431]
[1759110283420,7.80271857,210.17,210.13,0.66]
[1759110283623,0.67,210.16,210.11,0.66]
[1759110283825,0.67,210.16,210.12,0.66]
[1759110284015,26.0,210.18,210.13,0.66]
[1759110284016,31.42786254,210.18,210.13,0.66]
[1759110284216,2.37462669,210.15,210.13,0.66]
[1759110285844,2.37462669,210.15,210.13,5.41895219]
[1759110286018,2.37462669,210.15,210.14,0.66]
[1759110286216,26.0,210.17,210.14,0.66]
[1759110286537,26.0,210.18,210.15,0.66]
[1759110287338,0.67,210.22,210.16,0.66]
[1759110287639,37.15,210.23,210.16,0.66]
[1759110287948,63.15,210.23,210.17,4.758053]
[1759110288237,63.15,210.23,210.17,5.418053]
[1759110289239,36.48,210.24,210.18,0.66]
[1759110289537,37.15,210.24,210.18,0.66]
[1759110289946,37.15,210.24,210.19,4.75760026]
[1759110290118,37.15,210.24,210.2,0.66]
[1759110290317,0.67,210.24,210.2,0.66]
[1759110290631,0.67,210.24,210.19,4.75760026]
[1759110290826,0.67,210.24,210.19,5.45760026]
[1759110291238,0.67,210.24,210.19,0.7]
[1759110291239,0.67,210.23,210.19,0.7]
[1759110291624,0.67,210.23,210.19,5.45752173]
[1759110293127,26.0,210.23,210.19,4.75752173]
[1759110293333,26.0,210.23,210.2,0.7]
[1759110293846,26.0,210.23,210.19,4.75752173]
[1759110294029,26.67,210.23,210.19,5.45752173]
[1759110294227,26.0,210.23,210.2,0.7]
[1759110296836,26.67,210.23,210.19,4.75743838]
[1759110297036,26.67,210.23,210.19,5.45743838]
[1759110300640,0.67,210.22,210.19,0.7]
[1759110301754,0.67,210.22,210.14,0.7]
[1759110301959,26.0,210.19,210.12,0.7]
[1759110302270,26.0,210.18,210.12,0.7]
[1759110302957,26.0,210.19,210.13,4.75895873]
[1759110303261,63.15,210.22,210.14,0.7]
[1759110303437,0.67,210.18,210.13,5.45895873]
[1759110303631,0.67,210.18,210.14,0.7]
[1759110304536,0.67,210.19,210.15,0.7]
[1759110304747,0.67,210.18,210.14,4.75868908]
[1759110305047,0.67,210.18,210.14,5.45868908]
[1759110306057,0.67,210.21,210.15,0.7]
[1759110306358,26.0,210.22,210.15,0.7]
[1759110307229,26.0,210.22,210.16,4.7582794]
[1759110307425,26.0,210.22,210.17,0.7]
[1759110307426,26.67,210.22,210.17,0.7]
[1759110307649,26.0,210.22,210.17,0.7]
[1759110307956,36.48,210.23,210.17,0.7]
[1759110308252,0.67,210.24,210.17,0.7]
[1759110309125,0.67,210.24,210.18,4.75782662]
[1759110309355,0.67,210.24,210.19,0.7]
[1759110309553,30.75626623,210.25,210.19,0.7]
[1759110309732,0.67,210.23,210.19,0.7]
[1759110310453,0.67,210.23,210.17,4.75804236]
[1759110310751,26.67,210.22,210.17,4.75804236]
[1759110311066,0.67,210.21,210.13,5.45879523]
[1759110311350,26.0,210.18,210.12,4.75897685]
[1759110311541,0.67,210.17,210.12,4.75897685]
[1759110311943,26.67,210.17,210.12,5.46897685]
[1759110313130,26.0,210.17,210.13,0.71]
[1759110313329,26.0,210.17,210.14,0.71]
[1759110313546,5.42763016,210.19,210.14,0.71]
[1759110313547,26.0,210.18,210.14,0.71]
[1759110313726,26.0,210.18,210.15,0.71]
[1759110313929,4.75743991,210.2,210.12,4.75897685]
[1759110314136,26.0,210.17,210.13,0.71]
[1759110314531,26.0,210.18,210.13,5.46878241]
[1759110314832,0.67,210.17,210.13,5.46878241]
[1759110316332,0.67,210.17,210.13,0.71]
[1759110316532,26.0,210.18,210.13,0.71]
[1759110316750,30.75727961,210.21,210.14,0.71]
[1759110317053,26.0,210.21,210.14,0.71]
[1759110317352,37.17,210.23,210.14,0.71]
[1759110317553,63.17,210.23,210.14,0.71]
[1759110317927,67.92676482,210.23,210.15,4.75850582]
[1759110318131,0.67,210.22,210.16,0.71]
[1759110318554,63.17,210.23,210.16,0.71]
[1759110319152,26.67,210.23,210.16,0.71]
[1759110319336,26.0,210.23,210.16,0.71]
[1759110319846,26.67,210.23,210.17,4.758053]
[1759110320041,26.67,210.23,210.18,0.71]
[1759110320245,26.67,210.23,210.19,0.71]
[1759110321650,0.66,210.22,210.17,5.418053]
[1759110321846,0.66,210.21,210.16,0.66]
[1759110322263,0.66,210.21,210.14,11.89660385]
[1759110322565,0.66,210.21,210.17,0.66]
[1759110323440,0.66,210.21,210.18,4.75782662]
[1759110324744,26.66,210.23,210.18,4.75782662]
[1759110324959,0.66,210.22,210.18,4.75782662]
[1759110325344,0.66,210.21,210.18,4.75782662]
[1759110325842,0.66,210.21,210.17,0.66]
[1759110325843,0.66,210.2,210.15,4.75850582]
[1759110326154,0.66,210.19,210.15,5.41850582]
[1759110326960,13.59559401,210.22,210.13,4.75881655]
[1759110327144,0.66,210.18,210.13,5.41881655]
[1759110327343,26.0,210.19,210.14,0.66]
[1759110327853,26.66,210.19,210.14,0.66]
[1759110328162,26.66,210.19,210.15,0.66]
[1759110328864,26.0,210.19,210.15,0.66]
[1759110329052,36.52,210.22,210.16,0.66]
[1759110329564,37.18,210.22,210.16,0.66]
[1759110330264,0.66,210.22,210.16,0.66]
[1759110330469,26.66,210.22,210.16,0.66]
[1759110330776,26.66,210.22,210.14,0.66]
[1759110331266,26.66,210.22,210.15,4.75850582]
[1759110331458,0.66,210.21,210.15,4.75850582]
[1759110331653,0.66,210.2,210.15,4.75850582]
[1759110331965,0.66,210.19,210.15,5.41850582]
[1759110332357,0.66,210.18,210.1,0.66]
[1759110332549,0.66,210.18,210.08,4.76009139]
[1759110332755,0.66,210.17,210.1,0.66]
[1759110334271,0.66,210.17,210.11,4.75941173]
[1759110334463,0.66,210.17,210.11,5.41941173]
[1759110335255,0.66,210.17,210.13,4.75895873]
[1759110335769,0.66,210.17,210.13,5.41895873]
[1759110336781,26.0,210.2,210.14,0.66]
[1759110337276,26.0,210.2,210.13,16.65635557]
[1759110337277,0.66,210.19,210.13,4.75895873]
[1759110337451,0.66,210.18,210.13,5.41895873]
[1759110337664,0.66,210.18,210.14,0.66]
[1759110337849,26.0,210.2,210.14,0.66]
[1759110338670,26.66,210.2,210.14,0.66]
[1759110338864,26.66,210.2,210.15,4.75850582]
[1759110339169,0.66,210.19,210.15,5.41850582]
[1759110341965,26.0,210.2,210.15,5.41850582]
[1759110342163,26.66,210.2,210.15,5.41850582]
[1759110343166,0.66,210.19,210.15,4.75850582]
[1759110343466,0.66,210.18,210.15,4.75850582]
[1759110344171,26.66,210.2,210.15,5.41850582]
[1759110344367,0.66,210.19,210.15,5.41850582]
[1759110345550,26.66,210.18,210.1,5.41963826]
[1759110345858,41.11575568,210.13,210.07,0.1]
[1759110346164,26.0,210.13,210.08,0.66]
[1759110346565,63.26,210.15,210.08,0.66]
[1759110347159,63.26,210.15,210.09,4.75986481]
[1759110347360,26.0,210.15,210.1,0.66]
[1759110347558,26.0,210.15,210.11,0.66]
[1759110348069,0.66,210.16,210.12,0.66]
[1759110348277,0.66,210.15,210.1,0.66]
[1759110348461,68.03806281,210.17,210.09,16.65952685]
[1759110348770,0.66,210.16,210.11,0.66]
[1759110348969,0.66,210.15,210.11,0.66]
[1759110349368,0.66,210.15,210.12,4.75918522]
[1759110350176,36.62,210.17,210.13,0.66]
[1759110350478,37.28,210.17,210.13,0.66]
[1759110350676,0.66,210.17,210.13,0.66]
[1759110351577,0.66,210.17,210.11,0.66]
[1759110353773,62.62,210.18,210.11,0.66]
[1759110353978,0.71,210.17,210.11,0.66]
[1759110356077,5.46819438,210.17,210.08,4.76009139]
[1759110356259,2.23016167,210.16,210.08,5.42009139]
[1759110356465,0.71,210.15,210.09,0.66]
[1759110359654,0.71,210.15,210.1,4.75963826]
[1759110359855,41.35818868,210.17,210.1,4.75963826]
[1759110360055,0.71,210.15,210.1,4.75963826]
[1759110360365,26.0,210.16,210.11,0.66]
[1759110360753,26.0,210.16,210.1,16.65873392]
[1759110360968,26.0,210.16,210.11,0.66]
[1759110361258,26.0,210.16,210.12,0.66]
[1759110361479,0.71,210.15,210.1,12.55909566]
[1759110361658,0.71,210.15,210.11,5.41941173]
[1759110361860,0.71,210.15,210.11,4.75941173]
[1759110362067,0.71,210.15,210.11,5.41941173]
[1759110362269,26.0,210.16,210.11,5.41941173]
[1759110362463,26.71,210.16,210.11,4.75941173]
[1759110362661,26.71,210.16,210.11,5.41941173]
[1759110362862,0.71,210.15,210.11,4.75941173]
[1759110363065,26.0,210.16,210.12,0.66]
[1759110363263,26.0,210.16,210.11,4.75941173]
[1759110363482,0.71,210.15,210.11,0.66]
[1759110364278,26.0,210.16,210.11,0.66]
[1759110364471,26.71,210.16,210.12,4.75918522]
[1759110364669,26.71,210.16,210.12,5.41918522]
[1759110365082,0.71,210.18,210.13,0.66]
[1759110365266,37.29,210.18,210.14,0.66]
[1759110365466,0.71,210.17,210.12,5.41918522]
[1759110365882,0.71,210.16,210.12,5.41918522]
[1759110366088,0.71,210.16,210.12,17.31714828]
[1759110366383,36.58,210.18,210.12,16.65714828]
[1759110366584,37.29,210.18,210.12,17.31714828]
[1759110367780,0.71,210.17,210.12,5.41918522]
[1759110367990,0.71,210.16,210.12,4.75918522]
[1759110368284,0.71,210.15,210.12,4.75918522]
[1759110368481,36.58,210.18,210.12,4.75918522]
[1759110368666,0.71,210.17,210.12,4.75918522]
[1759110368867,37.29,210.18,210.13,0.66]
[1759110369068,26.0,210.18,210.09,11.89919919]
[1759110369281,26.71,210.18,210.14,0.66]
[1759110369871,26.71,210.18,210.09,11.89919919]
[1759110370086,26.71,210.18,210.11,16.65794107]
[1759110370270,26.0,210.18,210.12,0.66]
[1759110370468,36.56,210.19,210.12,0.66]
[1759110372270,36.56,210.19,210.13,16.65635557]
[1759110372463,41.31763342,210.19,210.14,0.65]
[1759110372676,0.7,210.18,210.14,0.65]
[1759110373068,36.56,210.19,210.13,4.75895873]
[1759110373269,36.56,210.19,210.14,0.65]
[1759110373572,36.56,210.19,210.15,0.65]
[1759110373880,37.26,210.19,210.15,0.65]
[1759110374067,0.7,210.19,210.13,5.40895873]
[1759110374271,0.7,210.19,210.14,0.65]
[1759110374576,0.7,210.18,210.14,0.65]
[1759110375379,0.7,210.18,210.15,4.75850582]
[1759110375691,0.7,210.2,210.15,5.40850582]
[1759110375896,41.33715598,210.21,210.15,5.40850582]
[1759110376188,0.7,210.19,210.15,5.40850582]
[1759110376693,37.28,210.21,210.16,0.65]
[1759110376873,0.7,210.2,210.16,0.65]
[1759110377275,0.7,210.19,210.15,4.75850582]
[1759110377593,0.7,210.19,210.15,0.65]
[1759110377992,0.7,210.2,210.09,40.45783357]
[1759110378297,0.7,210.2,210.15,0.65]
[1759110378466,3.21149084,210.21,210.15,0.65]
[1759110378670,0.7,210.19,210.15,0.65]
[1759110379097,0.7,210.19,210.16,4.7582794]
[1759110382919,0.71,210.18,210.1,11.89863939]
[1759110383208,0.71,210.17,210.11,0.66]
[1759110383989,0.71,210.17,210.11,5.41941173]
[1759110384190,0.71,210.17,210.11,4.75941173]
[1759110384401,0.71,210.17,210.12,0.66]
[1759110384597,0.71,210.16,210.12,0.66]
[1759110385494,0.71,210.16,210.12,5.41906089]
[1759110386001,44.50974425,210.18,210.08,4.76009139]
[1759110386002,4.758053,210.17,210.08,4.76009139]
[1759110386205,0.71,210.15,210.08,4.76009139]
[1759110386498,37.27,210.14,210.07,0.76]
[1759110386676,51.58673388,210.14,210.07,5.52029994]
[1759110387022,0.71,210.13,210.07,5.52029994]
[1759110387323,0.71,210.12,210.07,0.76]
[1759110387605,4.75924858,210.12,210.07,0.76]
[1759110387822,0.71,210.11,210.07,5.52031162]
[1759110388501,4.75924858,210.12,210.07,0.1]
[1759110388699,26.71,210.11,210.07,0.1]
[1759110389412,31.47069516,210.11,210.07,0.1]
[1759110389624,4.75963826,210.1,210.07,0.1]
[1759110390004,0.71,210.09,210.07,0.1]
[1759110390208,26.0,210.08,210.07,0.1]
[1759110390508,0.71,210.08,210.07,0.1]
[1759110390716,26.71,210.08,210.07,0.1]
[1759110392028,26.0,210.08,210.07,0.1]
[1759110395014,11.90387762,210.11,210.07,0.1]
[1759110395218,5.46848297,210.16,210.07,5.52028619]
[1759110395430,36.58,210.15,210.08,0.66]
[1759110395811,14.30559401,210.16,210.08,0.66]
[1759110396005,36.6,210.15,210.08,0.66]
[1759110396422,36.6,210.15,210.09,4.75986481]
[1759110396636,36.6,210.15,210.1,0.66]
[1759110396929,37.31,210.15,210.11,0.66]
[1759110397726,36.6,210.15,210.09,4.75986481]
[1759110397926,0.71,210.14,210.09,5.41986481]
[1759110398121,36.6,210.15,210.1,0.66]
[1759110398310,37.31,210.15,210.1,5.41947333]
[1759110398706,0.71,210.14,210.1,5.41947333]
[1759110399735,4.75876833,210.14,210.07,5.5202909]
[1759110399916,0.71,210.13,210.07,5.5202909]
[1759110400530,4.75876833,210.14,210.07,0.76]
[1759110400723,0.71,210.13,210.07,5.52030897]
[1759110401324,0.71,210.13,210.08,0.66]
[1759110401526,0.71,210.13,210.09,0.66]
[1759110402533,50.91673388,210.15,210.09,4.75983041]
[1759110402723,51.62673388,210.15,210.09,5.41983041]
[1759110403036,36.58,210.14,210.1,0.66]
[1759110403536,36.58,210.14,210.09,4.75983041]
[1759110403738,36.58,210.14,210.1,0.66]
[1759110403926,36.58,210.14,210.11,0.66]
[1759110404228,36.58,210.14,210.11,5.41930907]
[1759110404639,37.90007922,210.16,210.12,0.66]
[1759110404818,0.71,210.18,210.12,0.66]
[1759110405018,26.0,210.16,210.12,0.66]
[1759110405427,26.0,210.16,210.11,4.75930907]
[1759110405635,26.0,210.09,210.07,0.1]
[1759110406240,0.71,210.08,210.07,0.1]
[1759110408747,5.47009139,210.08,210.07,0.1]
[1759110410211,0.71,210.08,210.07,0.1]
[1759110410609,35.52139172,210.09,210.07,0.1]
[1759110410811,36.18139172,210.09,210.07,0.1]
[1759110412743,0.66,210.08,210.07,0.1]
[1759110414132,35.52139172,210.09,210.07,0.1]
[1759110414623,36.18139172,210.09,210.07,0.1]
[1759110416248,31.41988306,210.09,210.07,0.1]
[1759110418629,0.66,210.08,210.07,0.1]
[1759110419123,37.34,210.08,210.07,0.1]
[1759110419534,49.24493947,210.08,210.07,0.1]
[1759110419735,62.84053348,210.08,210.07,0.1]
[1759110420448,67.60062487,210.08,210.07,0.1]
[1759110421356,67.62062487,210.08,210.07,0.1]
[1759110423342,67.60062487,210.08,210.07,0.1]
[1759110424630,30.92062487,210.08,210.07,0.1]
[1759110424836,67.60062487,210.08,210.07,0.1]
[1759110426947,69.97840373,210.08,210.07,0.1]
[1759110429332,67.60062487,210.08,210.07,0.1]
[1759110429535,69.97840373,210.08,210.07,0.1]
[1759110430626,33.29840373,210.08,210.07,0.1]
[1759110430832,26.0,210.08,210.07,0.77]
[1759110431152,67.44009139,210.08,210.07,0.1]
[1759110431736,72.20183452,210.08,210.07,0.1]
[1759110431946,72.87183452,210.08,210.07,0.1]
[1759110432342,62.84520739,210.08,210.07,0.1]
[1759110433371,66.05183617,210.08,210.07,0.1]
[1759110433852,13.59559401,210.04,210.0,0.67]
[1759110434055,26.0,210.01,209.98,0.77]
[1759110434257,62.7,210.01,209.99,0.67]
[1759110434850,62.7,210.01,209.98,0.1]
[1759110435054,62.7,210.01,209.98,0.77]
[1759110435265,4.76190476,210.0,209.98,0.77]
[1759110435447,62.74,209.99,209.98,0.77]
[1759110436446,26.0,209.99,209.98,0.77]
[1759110439160,62.72,210.01,209.98,0.77]
[1759110439356,62.74,210.01,209.98,0.77]
[1759110440736,62.74,210.01,209.98,0.1]
[1759110440941,62.74,210.01,209.99,0.71]
[1759110441138,62.74,210.01,209.98,0.1]
[1759110441355,62.74,210.01,209.99,0.71]
[1759110441556,62.74,210.01,210.0,0.71]
[1759110442060,62.74,210.01,209.98,0.81]
[1759110442947,62.74,210.01,209.98,0.1]
[1759110443155,62.74,210.01,209.99,0.71]
[1759110445143,62.74,210.01,210.0,0.71]
[1759110445336,26.0,210.01,210.0,0.71]
[1759110445541,62.72,210.01,210.0,0.71]
[1759110446059,26.0,210.01,209.98,0.1]
[1759110446257,62.7,210.01,209.99,0.71]
[1759110446760,62.7,210.01,209.98,0.1]
[1759110446949,67.46169727,210.01,209.98,0.81]
[1759110447955,62.7,210.01,209.98,0.81]
[1759110448156,62.7,210.01,209.99,0.71]
[1759110448457,62.7,210.01,209.98,0.1]
[1759110448656,62.7,210.01,209.98,0.81]
[1759110450850,68.17177691,210.01,209.98,0.81]
[1759110451054,67.46177691,210.01,209.98,0.81]
[1759110451361,68.17177691,210.01,209.98,0.1]
[1759110451962,0.71,210.0,209.98,0.1]
[1759110452465,67.46177691,210.01,209.98,0.1]
[1759110452664,68.17177691,210.01,209.98,0.1]
[1759110453848,0.71,210.0,209.98,0.1]
[1759110454043,0.71,209.99,209.98,0.1]
[1759110454348,37.39,209.99,209.98,0.1]
[1759110455764,36.68,209.99,209.98,0.1]
[1759110456266,36.66,210.0,209.98,0.1]
[1759110456851,26.0,210.01,209.98,0.1]
[1759110457053,13.59559401,210.04,209.99,0.71]
[1759110457267,13.59559401,210.07,210.0,4.76190476]
[1759110457466,36.68,210.06,210.01,0.71]
[1759110458257,62.68,210.06,210.02,4.76145129]
[1759110458564,62.68,210.06,210.02,5.47145129]
[1759110458964,26.0,210.04,210.03,0.71]
[1759110459174,26.0,210.04,210.02,4.76145129]
[1759110459371,26.0,210.03,210.02,4.76145129]
[1759110459775,26.0,210.03,210.02,5.47145129]
[1759110461048,13.42244008,210.11,210.02,5.47145129]
[1759110461049,5.30740347,210.17,210.02,17.37507951]
[1759110461368,51.00559401,210.13,210.03,0.71]
[1759110461565,36.7,210.13,210.03,0.71]
[1759110461952,26.0,210.1,210.03,0.71]
[1759110462182,36.7,210.13,210.04,4.7609979]
[1759110462357,26.0,210.1,210.05,0.71]
[1759110462878,36.7,210.13,210.05,0.71]
[1759110463249,26.0,210.1,210.05,0.71]
[1759110464078,26.0,210.1,210.06,16.66190611]
[1759110464374,26.0,210.1,210.07,0.71]
[1759110464672,26.0,210.1,210.06,16.66190611]
[1759110464673,26.0,210.1,210.08,0.71]
[1759110465076,0.71,210.09,210.04,5.47091065]
[1759110465256,0.71,210.08,210.04,5.47091065]
[1759110465568,26.0,210.08,210.05,0.71]
[1759110465751,26.71,210.08,210.04,4.76091065]
[1759110466878,26.0,210.0,209.98,0.1]
[1759110467171,26.0,209.99,209.98,0.1]
[1759110467970,26.0,209.99,209.98,5.57235831]
[1759110468751,26.0,209.99,209.98,0.81]
[1759110469056,26.0,209.99,209.98,0.1]
[1759110469257,26.71,209.99,209.98,0.1]
[1759110469458,26.0,209.99,209.98,0.1]
[1759110471978,26.0,209.99,209.98,0.77]
[1759110472362,26.0,209.99,209.98,5.53235831]
[1759110473477,26.0,209.99,209.98,0.1]
[1759110473660,26.71,209.99,209.98,0.1]
[1759110473867,81.94772554,209.99,209.98,0.1]
[1759110474864,83.47121789,209.99,209.98,0.1]
[1759110475373,86.67729504,209.99,209.98,0.1]
[1759110476367,86.67672966,209.99,209.98,0.1]
[1759110478991,101.16633963,209.99,209.98,0.1]
[1759110479195,97.96082786,209.99,209.98,0.1]
[1759110479573,101.16368119,209.99,209.98,1e-08]
[1759110480492,64.28368119,209.99,209.98,1e-08]
[1759110480715,101.18368119,209.99,209.98,1e-08]
[1759110481677,64.28368119,209.99,209.98,1e-08]
[1759110481872,101.18368119,209.99,209.98,1e-08]
[1759110482665,101.16368119,209.99,209.98,1e-08]
[1759110482891,97.96082786,209.99,209.98,1e-08]
[1759110483188,96.43733551,209.99,209.98,1e-08]
[1759110483892,98.3482396,209.99,209.98,1e-08]
[1759110486686,101.54647719,209.99,209.98,1e-08]
[1759110488588,39.59559401,209.96,209.95,0.1]
[1759110488763,77.97908636,209.96,209.95,0.1]
[1759110488962,81.88732395,209.96,209.95,0.1]
[1759110489367,46.93831934,209.96,209.95,0.1]
[1759110489600,13.59559401,209.95,209.94,0.1]
[1759110489985,14.30559401,209.95,209.94,0.1]
[1759110490296,57.83971951,209.95,209.94,0.1]
[1759110492369,57.12971951,209.95,209.94,0.1]
[1759110492578,57.84971951,209.95,209.94,0.1]
[1759110493803,57.12971951,209.95,209.94,0.1]
[1759110493985,58.65321186,209.95,209.94,0.1]
[1759110494800,59.37321186,209.95,209.94,0.1]
[1759110495979,59.35321186,209.95,209.94,0.1]
[1759110497405,59.35321186,209.95,209.94,1e-08]
[1759110497708,22.51321186,209.95,209.94,1e-08]
[1759110497899,59.35321186,209.95,209.94,1e-08]